[Event "FIDE World Cup O10-TB 2024"]
[Site "Batumi"]
[Date "2024.07.02"]
[Round "2.7"]
[White "AlJamaat, Khaled"]
[Black "Safin Safarullakhan"]
[Result "0-1"]
[ECO "E12"]
[WhiteElo "1644"]
[BlackElo "1879"]
[Annotator "NA RC"]
[PlyCount "95"]
[EventDate "2024.06.23"]
[EventType "swiss"]
[EventCountry "GEO"]
[SourceTitle "playchess.com"]
[Source "ChessBase"]
[SourceQuality "1"]
[TimeControl "5400+30"]

1. d4 {[%emt 0:00:20]} Nf6 {[%emt 0:00:19]} 2. c4 {[%emt 0:00:03]} e6 {[%emt 0:00:23]} 3. Nf3 {[%emt 0:00:14]} b6 {[%emt 0:00:31]} 4. a3 {[%emt 0:00:50]} Bb7 {[%emt 0:01:19]} 5. Nc3 {[%emt 0:00:14]} Be7 {[%emt 0:00:28]} 6. e3 {[%emt 0:02:20]} O-O {[%emt 0:00:41]} 7. Be2 {[%emt 0:00:42]} d5 {[%emt 0:00:27]} 8. cxd5 {[%emt 0:01:02] E12: Queen's Indian: Unusual White 4th moves, 4 a3, 4 Nc3 Bb7 5 a3 and 4 Nc3 Bb7 .} exd5 {[%emt 0:00:19]} 9. O-O {[%emt 0:00:15]} c5 {[%emt 0:00:29]} 10. dxc5 {[%emt 0:03:54]} bxc5 {[%emt 0:00:28]} 11. Qb3 {[%emt 0:00:47]} Qc8 {[%emt 0:03:07]} 12. Rd1 {[%emt 0:07:09]} Rd8 {[%emt 0:02:06]} 13. Qc2 {[%emt 0:03:51]} Nc6 {[%emt 0:08:49]} 14. Na4 {[%emt 0:06:40]} Ne4 {[%emt 0:04:24]} 15. Bd3 {[%emt 0:00:48]} Ba6 {[%emt 0:03:13]} 16. Ne1 {[%emt 0:08:33]} Bxd3 {[%emt 0:06:36]} 17. Nxd3 {[%emt 0:00:24]} Na5 {[%emt 0:02:29]} 18. Nf4 {[%emt 0:02:35]} Qb7 {[%emt 0:05:11]} 19. f3 {[%emt 0:03:43]} Nb3 {[%emt 0:04:30]} 20. Rb1 {[%emt 0:00:52]} Nf6 {[%emt 0:02:01]} 21. Bd2 {[%emt 0:03:47]} d4 {[%emt 0:02:03]} 22. exd4 {[%emt 0:04:33]} Rxd4 {[%emt 0:01:07]} 23. Nc3 {[%emt 0:10:28]} Nxd2 {[%emt 0:00:41]} 24. Rxd2 {[%emt 0:00:06]} Rxf4 {[%emt 0:00:20]} 25. Ne2 {[%emt 0:00:21]} Rh4 {[%emt 0:00:52]} 26. Re1 {[%emt 0:00:35]} Bf8 {[%emt 0:02:14]} 27. Ng3 {[%emt 0:01:18]} Rd4 {[%emt 0:00:47]} 28. Rde2 {[%emt 0:00:06]} g6 {[%emt 0:01:01]} 29. Nf1 {[%emt 0:00:34]} Rad8 {[%emt 0:00:53]} 30. Nd2 $19 {[%emt 0:00:32]} Qb5 {[%emt 0:04:57]} 31. Nf1 {[%emt 0:00:43]} Qd3 {[%emt 0:03:09]} 32. Qc1 {[%emt 0:00:12]} Nd5 {[%emt 0:02:36]} 33. Re8 {[%emt 0:00:31]} Rxe8 {[%emt 0:01:24]} 34. Rxe8 {[%emt 0:00:06]} Kg7 {[%emt 0:01:07]} 35. Qg5 {[%emt 0:00:42]} Bd6 {[%emt 0:00:42]} 36. Qd8 {[%emt 0:00:09]} Nf6 {[%emt 0:00:40]} 37. Qc8 {[%emt 0:00:38]} Nxe8 {[%emt 0:00:31]} 38. Qxe8 {[%emt 0:00:05]} Qb1 {[%emt 0:00:43]} 39. Qe2 {[%emt 0:00:24]} Rd1 {[%emt 0:00:09]} 40. h3 {[%emt 0:00:05]} Rxf1+ {[%emt 0:01:35]} 41. Qxf1 {[%emt 0:00:09]} Qxb2 {[%emt 0:00:34]} 42. Qa6 {[%emt 0:00:33]} Bg3 {[%emt 0:00:20]} 43. Qf1 {[%emt 0:00:03]} Qd4+ {[%emt 0:00:21]} 44. Kh1 {[%emt 0:00:06]} c4 {[%emt 0:00:08]} 45. f4 {[%emt 0:00:09]} c3 {[%emt 0:00:31]} 46. f5 {[%emt 0:00:02]} c2 {[%emt 0:00:17]} 47. f6+ {[%emt 0:00:01]} Qxf6 {[%emt 0:00:25]} 48. Qc1 {[%emt 0:00:05]} 0-1

[Event "FIDE World Cup O10-TB 2024"]
[Site "Batumi"]
[Date "2024.07.02"]
[Round "2.9"]
[White "Azimov, Yasin"]
[Black "Guntaka, Aayansh"]
[Result "0-1"]
[ECO "D30"]
[WhiteElo "1833"]
[BlackElo "1872"]
[Annotator "NA RC"]
[PlyCount "60"]
[EventDate "2024.06.23"]
[EventType "swiss"]
[EventCountry "GEO"]
[SourceTitle "playchess.com"]
[Source "ChessBase"]
[SourceQuality "1"]
[TimeControl "5400+30"]

1. d4 {[%emt 0:00:08]} d5 {[%emt 0:00:07]} 2. c4 {[%emt 0:00:09]} e6 {[%emt 0:00:03]} 3. Nf3 {[%emt 0:00:08]} c6 {[%emt 0:00:06]} 4. Nbd2 {[%emt 0:00:09]} f5 {[%emt 0:00:10]} 5. g3 {[%emt 0:00:07]} Bd6 {[%emt 0:00:08]} 6. Bg2 {[%emt 0:00:07]} Nd7 {[%emt 0:00:03]} 7. O-O {[%emt 0:01:00]} Nh6 {[%emt 0:00:04]} 8. Ne1 {[%emt 0:02:08]} Nf7 {[%emt 0:01:11]} 9. Nd3 {[%emt 0:04:56]} g5 {[%emt 0:00:50]} 10. b3 {[%emt 0:01:44]} h5 {[%emt 0:00:18]} 11. Bb2 {[%emt 0:09:28]} h4 {[%emt 0:01:00]} 12. Nf3 {[%emt 0:03:07]} hxg3 {[%emt 0:00:27]} 13. fxg3 {[%emt 0:00:10]} Nf6 {[%emt 0:11:26]} 14. c5 {[%emt 0:10:20]} Bc7 {[%emt 0:02:33]} 15. Qc1 {[%emt 0:04:56]} Ng4 {[%emt 0:06:33]} 16. h3 {[%emt 0:06:40]} Ngh6 {[%emt 0:03:27]} 17. Nfe5 {[%emt 0:00:20]} Nxe5 {[%emt 0:01:08]} 18. dxe5 {[%emt 0:00:34]} b6 {[%emt 0:01:50]} 19. b4 {[%emt 0:00:13]} Ba6 {[%emt 0:03:32]} 20. Bd4 {[%emt 0:05:03]} b5 {[%emt 0:06:11]} 21. g4 {[%emt 0:14:26]} fxg4 {[%emt 0:04:15]} 22. Rf6 {[%emt 0:00:24]} Qe7 {[%emt 0:03:57]} 23. Qxg5 {[%emt 0:05:07]} Kd7 {[%emt 0:09:21]} 24. Nf4 {[%emt 0:31:06]} Rag8 {[%emt 0:07:09]} 25. Ng6 {[%emt 0:00:00]} Qe8 {[%emt 0:01:32]} 26. hxg4 {[%emt 0:00:00]} Bd8 {[%emt 0:00:19]} 27. Raf1 {[%emt 0:00:00]} Bxf6 {[%emt 0:01:22]} 28. Rxf6 {[%emt 0:00:00]} Rh7 {[%emt 0:00:12]} 29. Nf8+ {[%emt 0:00:00]} Qxf8 {[%emt 0:00:52]} 30. Qf4 {[%emt 0:00:00]} Qg7 {[%emt 0:00:27]} 0-1

[Event "FIDE World Cup O10-TB 2024"]
[Site "Batumi"]
[Date "2024.07.02"]
[Round "2.10"]
[White "Kalinichenko, German Yu"]
[Black "Lazarev, Egor"]
[Result "1-0"]
[ECO "B86"]
[WhiteElo "1634"]
[BlackElo "1683"]
[Annotator "NA RC"]
[PlyCount "47"]
[EventDate "2024.06.23"]
[EventType "swiss"]
[EventCountry "GEO"]
[SourceTitle "playchess.com"]
[Source "ChessBase"]
[SourceQuality "1"]
[TimeControl "5400+30"]

1. e4 {[%emt 0:00:04]} c5 {[%emt 0:00:09]} 2. Nf3 {[%emt 0:00:16]} d6 {[%emt 0:00:04]} 3. d4 {[%emt 0:00:10]} cxd4 {[%emt 0:00:05]} 4. Nxd4 {[%emt 0:00:24]} Nf6 {[%emt 0:00:07]} 5. Nc3 {[%emt 0:00:06]} a6 {[%emt 0:00:03]} 6. Bc4 {[%emt 0:00:46]} e6 {[%emt 0:00:18]} 7. Bb3 {[%emt 0:00:18]} Be7 {[%emt 0:00:27]} 8. Be3 {[%emt 0:00:22]} O-O {[%emt 0:00:41]} 9. Qe2 {[%emt 0:00:19]} b5 {[%emt 0:01:09]} 10. O-O-O {[%emt 0:06:13]} Qc7 {[%emt 0:02:43]} 11. g4 {[%emt 0:01:17]} b4 {[%emt 0:00:28]} 12. Na4 {[%emt 0:00:10]} Nxe4 {[%emt 0:00:40]} 13. Nb6 {[%emt 0:08:26]} Qxb6 {[%emt 0:00:01]} 14. Nxe6 {[%emt 0:00:23]} Nc5 {[%emt 0:00:05]} 15. Bxc5 {[%emt 0:00:37]} dxc5 {[%emt 0:02:07]} 16. Nxf8 {[%emt 0:00:08]} Kxf8 {[%emt 0:09:23]} 17. Qf3 {[%emt 0:00:14]} Bg5+ {[%emt 0:00:05]} 18. Kb1 {[%emt 0:00:06]} Ra7 {[%emt 0:00:47]} 19. Rhe1 {[%emt 0:01:53]} g6 {[%emt 0:03:04]} 20. h4 {[%emt 0:04:54]} Bxh4 {[%emt 0:14:17]} 21. Qf4 {[%emt 0:02:12]} g5 {[%emt 0:11:03]} 22. Qe5 {[%emt 0:00:24]} Be6 {[%emt 0:00:18]} 23. Bxe6 {[%emt 0:00:14]} fxe6 {[%emt 0:00:04]} 24. Qf6+ {[%emt 0:00:12]} 1-0

[Event "FIDE World Cup O10-TB 2024"]
[Site "Batumi"]
[Date "2024.07.02"]
[Round "2.11"]
[White "Shen, Houlin"]
[Black "Eshkol, Idan"]
[Result "1-0"]
[ECO "D30"]
[WhiteElo "1583"]
[BlackElo "1544"]
[Annotator "NA RC"]
[PlyCount "75"]
[EventDate "2024.06.23"]
[EventType "swiss"]
[EventCountry "GEO"]
[SourceTitle "playchess.com"]
[Source "ChessBase"]
[SourceQuality "1"]
[TimeControl "5400+30"]

1. d4 {[%emt 0:00:03]} d5 {[%emt 0:00:05]} 2. c4 {[%emt 0:01:52]} e6 {[%emt 0:00:05]} 3. Nf3 {[%emt 0:00:12]} Nf6 {[%emt 0:00:04]} 4. g3 {[%emt 1:30:23]} c6 {[%emt 0:01:18]} 5. Qc2 {[%emt 0:00:00]} Qc7 {[%emt 0:03:22]} 6. Nbd2 {[%emt 0:00:00]} Nbd7 {[%emt 0:06:57]} 7. Bg2 {[%emt 0:00:00]} dxc4 {[%emt 0:12:19]} 8. Nxc4 {[%emt 0:00:00]} c5 {[%emt 0:00:17]} 9. Bf4 {[%emt 0:00:00]} Qc6 {[%emt 0:02:13]} 10. O-O {[%emt 0:00:00]} Be7 {[%emt 0:04:52]} 11. Rac1 {[%emt 0:00:00]} Qa6 {[%emt 0:02:44]} 12. Rfd1 {[%emt 0:00:00]} O-O {[%emt 0:02:01]} 13. dxc5 {[%emt 0:00:00]} Nxc5 {[%emt 0:05:44]} 14. Bd6 {[%emt 0:00:00]} Bxd6 {[%emt 0:04:10]} 15. Nxd6 {[%emt 0:00:00]} b6 {[%emt 0:03:09]} 16. b4 {[%emt 0:00:00]} Ncd7 {[%emt 0:04:38]} 17. b5 {[%emt 0:00:00]} Qa3 {[%emt 0:00:57]} 18. Nd4 {[%emt 0:00:00]} Nd5 {[%emt 0:06:56]} 19. Bxd5 {[%emt 0:00:00]} exd5 {[%emt 0:00:17]} 20. N4f5 {[%emt 0:00:00]} Kh8 {[%emt 0:03:42]} 21. Qc6 {[%emt 0:00:00]} Rb8 {[%emt 0:03:15]} 22. Ne7 {[%emt 0:00:00]} Ne5 {[%emt 0:22:43]} 23. Qxd5 {[%emt 0:00:00]} Be6 {[%emt 0:01:49]} 24. Qxe5 {[%emt 0:00:00]} Qxa2 {[%emt 0:01:29]} 25. Ra1 {[%emt 0:00:00]} Qc2 {[%emt 0:00:24]} 26. e4 {[%emt 0:00:00]} Qe2 {[%emt 0:00:37]} 27. Nef5 {[%emt 0:00:00]} Qg4 {[%emt 0:00:38]} 28. f3 {[%emt 0:00:00]} Qg5 {[%emt 0:00:38]} 29. h4 {[%emt 0:00:00]} Qg6 {[%emt 0:00:40]} 30. h5 {[%emt 0:00:00]} Qg5 {[%emt 0:00:09]} 31. h6 {[%emt 0:00:00]} Bxf5 {[%emt 0:00:24]} 32. Nxf5 {[%emt 0:00:00]} f6 {[%emt 0:03:39]} 33. Qc7 {[%emt 0:00:00]} gxh6 {[%emt 0:01:51]} 34. Rxa7 {[%emt 0:00:00]} Qg6 {[%emt 0:00:32]} 35. Rd7 {[%emt 0:00:00]} Rfc8 {[%emt 0:00:47]} 36. Rxh7+ {[%emt 0:00:00]} Kg8 {[%emt 0:00:15]} 37. Nxh6+ {[%emt 0:00:00]} Qxh6 {[%emt 0:00:20]} 38. Qf7# {[%emt 0:00:00]} 1-0

[Event "FIDE World Cup O10-TB 2024"]
[Site "Batumi"]
[Date "2024.07.02"]
[Round "2.12"]
[White "Hummatov, Safa"]
[Black "Akramov, Khasan"]
[Result "1/2-1/2"]
[ECO "B36"]
[WhiteElo "1693"]
[BlackElo "1718"]
[Annotator "NA RC"]
[PlyCount "73"]
[EventDate "2024.06.23"]
[EventType "swiss"]
[EventCountry "GEO"]
[SourceTitle "playchess.com"]
[Source "ChessBase"]
[SourceQuality "1"]
[TimeControl "5400+30"]

1. e4 {[%emt 0:00:02]} c5 {[%emt 0:00:02]} 2. Nf3 {[%emt 0:00:05]} g6 {[%emt 0:00:06]} 3. d4 {[%emt 0:00:04]} cxd4 {[%emt 0:00:03]} 4. Nxd4 {[%emt 0:00:04]} Nc6 {[%emt 0:00:03]} 5. c4 {[%emt 0:00:06]} Nf6 {[%emt 0:00:05]} 6. Nc3 {[%emt 0:00:03]} Nxd4 {[%emt 0:00:04]} 7. Qxd4 {[%emt 0:00:04]} d6 {[%emt 0:00:03]} 8. Be3 {[%emt 0:00:17]} Bg7 {[%emt 0:00:05]} 9. f3 {[%emt 0:00:04]} O-O {[%emt 0:00:10]} 10. Qd2 {[%emt 0:00:05]} a6 {[%emt 0:00:14]} 11. Be2 {[%emt 0:00:11]} Be6 {[%emt 0:01:17]} 12. O-O {[%emt 0:00:09]} Qa5 {[%emt 0:00:05]} 13. Nd5 {[%emt 0:00:47]} Qxd2 {[%emt 0:00:25]} 14. Nxe7+ {[%emt 0:01:14]} Kh8 {[%emt 0:00:06]} 15. Bxd2 {[%emt 0:00:04]} Rfe8 {[%emt 0:00:15]} 16. Nd5 {[%emt 0:00:27]} Nxd5 {[%emt 0:00:55]} 17. cxd5 {[%emt 0:00:25]} Bxd5 {[%emt 0:00:21]} 18. Bc3 {[%emt 0:00:40]} Bxc3 {[%emt 0:01:16]} 19. bxc3 {[%emt 0:00:08]} Be6 {[%emt 0:00:37]} 20. Rfd1 {[%emt 0:01:09]} Rac8 {[%emt 0:02:36]} 21. Rxd6 {[%emt 1:34:52]} Rxc3 {[%emt 0:00:05]} 22. a4 {[%emt 0:00:00]} Rb3 {[%emt 1:32:37]} 23. Rc1 {[%emt 0:00:00]} Re7 {[%emt 0:00:00]} 24. a5 {[%emt 0:00:00]} Ra3 {[%emt 0:00:00]} 25. Rc5 {[%emt 0:00:00]} Kg7 {[%emt 0:00:00]} 26. h3 {[%emt 0:00:00]} Ra2 {[%emt 0:00:00]} 27. Kf1 {[%emt 0:00:00]} Rd7 {[%emt 0:00:00]} 28. Rxd7 {[%emt 0:00:00]} Bxd7 {[%emt 0:00:00]} 29. Rc7 {[%emt 0:00:00]} Be6 {[%emt 0:00:00]} 30. Rc5 {[%emt 0:00:00]} Bd7 {[%emt 0:00:00]} 31. Bc4 {[%emt 0:00:00]} Bb5 {[%emt 0:00:00]} 32. Bxb5 {[%emt 0:00:00]} Rxa5 {[%emt 0:00:00]} 33. Ke2 {[%emt 0:00:00]} Rxb5 {[%emt 0:00:00]} 34. Rxb5 {[%emt 0:00:00]} axb5 {[%emt 0:00:00]} 35. Kd3 {[%emt 0:00:00]} Kf6 {[%emt 0:00:00]} 36. Kd4 {[%emt 0:00:00]} g5 {[%emt 0:00:00]} 37. g3 {[%emt 0:00:00]} 1/2-1/2

[Event "FIDE World Cup O10-TB 2024"]
[Site "Batumi"]
[Date "2024.07.02"]
[Round "2.14"]
[White "Jakhaia, Andria"]
[Black "Bergmann, Rafael Antonio"]
[Result "0-1"]
[ECO "C47"]
[WhiteElo "1652"]
[BlackElo "1743"]
[Annotator "NA RC"]
[PlyCount "50"]
[EventDate "2024.06.23"]
[EventType "swiss"]
[EventCountry "GEO"]
[SourceTitle "playchess.com"]
[Source "ChessBase"]
[SourceQuality "1"]
[TimeControl "5400+30"]

1. e4 {[%emt 0:00:30]} e5 {[%emt 0:00:06]} 2. Nf3 {[%emt 0:00:15]} Nc6 {[%emt 0:00:05]} 3. Nc3 {[%emt 0:00:12]} Nf6 {[%emt 0:00:04]} 4. Be2 {[%emt 0:00:09]} d5 {[%emt 0:00:08]} 5. exd5 {[%emt 0:00:33]} Nxd5 {[%emt 0:00:05]} 6. Bb5 {[%emt 0:00:15]} Nxc3 {[%emt 0:00:06]} 7. bxc3 {[%emt 0:00:45]} Bd6 {[%emt 0:00:17]} 8. O-O {[%emt 0:03:57]} O-O {[%emt 0:00:08]} 9. d4 {[%emt 0:00:06]} exd4 {[%emt 0:00:06]} 10. cxd4 {[%emt 0:00:10]} Bg4 {[%emt 0:00:29]} 11. c3 {[%emt 0:00:19]} Qf6 {[%emt 0:00:51]} 12. Be2 {[%emt 0:00:23]} Rfe8 {[%emt 0:01:31]} 13. Re1 {[%emt 0:02:07]} Ne7 {[%emt 0:05:17]} 14. h3 {[%emt 0:03:41]} Bxf3 {[%emt 0:02:37]} 15. Bxf3 {[%emt 0:00:13]} c6 {[%emt 0:01:22]} 16. Rb1 {[%emt 0:00:44]} Rab8 {[%emt 0:02:01]} 17. c4 {[%emt 0:11:08]} Nf5 {[%emt 0:01:34]} 18. Rxe8+ {[%emt 0:02:56]} Rxe8 {[%emt 0:00:09]} 19. c5 {[%emt 0:05:08]} Bf8 {[%emt 0:00:58]} 20. Bb2 {[%emt 0:03:24]} Qg6 {[%emt 0:02:34]} 21. Bc3 {[%emt 0:02:06]} Re7 {[%emt 0:03:08]} 22. Rb2 {[%emt 0:09:50]} Nh4 {[%emt 0:01:05]} 23. Rd2 {[%emt 0:08:55]} Re1+ {[%emt 0:00:09]} 24. Qxe1 {[%emt 0:01:01]} Nxf3+ {[%emt 0:00:05]} 25. Kh1 {[%emt 0:00:13]} Nxe1 {[%emt 0:00:06]} 0-1

[Event "FIDE World Cup O10-TB 2024"]
[Site "Batumi"]
[Date "2024.07.02"]
[Round "2.15"]
[White "Xia, Joshua"]
[Black "Macosay Lopez, Julio David"]
[Result "1-0"]
[ECO "C75"]
[WhiteElo "2060"]
[BlackElo "1607"]
[Annotator "NA RC"]
[PlyCount "47"]
[EventDate "2024.06.23"]
[EventType "swiss"]
[EventCountry "GEO"]
[SourceTitle "playchess.com"]
[Source "ChessBase"]
[SourceQuality "1"]
[TimeControl "5400+30"]

1. e4 {[%emt 0:00:14]} e5 {[%emt 0:00:10]} 2. Nf3 {[%emt 0:00:04]} Nc6 {[%emt 0:00:07]} 3. Bb5 {[%emt 0:00:03]} a6 {[%emt 0:00:12]} 4. Ba4 {[%emt 0:00:06]} d6 {[%emt 0:00:12]} 5. c3 {[%emt 0:00:32]} Bd7 {[%emt 0:00:26]} 6. O-O {[%emt 0:00:23]} Nge7 {[%emt 0:00:34]} 7. d4 {[%emt 0:00:40]} Ng6 {[%emt 0:00:18]} 8. Re1 {[%emt 0:01:12]} Be7 {[%emt 0:00:36]} 9. Nbd2 {[%emt 0:01:17]} O-O {[%emt 0:00:29]} 10. Nf1 {[%emt 0:00:51]} Bg4 {[%emt 0:01:37]} 11. h3 {[%emt 0:01:03]} Bxf3 {[%emt 0:05:15]} 12. Qxf3 {[%emt 0:01:07]} b5 {[%emt 0:00:07]} 13. Bb3 {[%emt 0:01:29]} exd4 {[%emt 0:00:26]} 14. Bd5 {[%emt 0:00:31]} Qd7 {[%emt 0:00:20]} 15. Bxc6 {[%emt 0:00:55]} Qxc6 {[%emt 0:00:15]} 16. cxd4 {[%emt 0:00:21]} Bf6 {[%emt 0:01:51]} 17. Be3 {[%emt 0:00:51]} Rfe8 {[%emt 0:02:52]} 18. Ng3 {[%emt 0:02:01]} Qc2 {[%emt 0:03:33]} 19. Re2 {[%emt 0:07:52]} Qa4 {[%emt 0:04:07]} 20. Nf5 {[%emt 0:02:20]} Ne7 {[%emt 0:04:23]} 21. Nxe7+ {[%emt 0:02:22]} Rxe7 {[%emt 0:00:29]} 22. e5 {[%emt 0:00:17]} Rae8 {[%emt 0:00:53]} 23. exf6 {[%emt 0:00:10]} gxf6 {[%emt 0:00:07]} 24. Bh6 {[%emt 0:00:15]} 1-0

[Event "FIDE World Cup O10-TB 2024"]
[Site "Batumi"]
[Date "2024.07.02"]
[Round "2.16"]
[White "Ismailov, Omarbek"]
[Black "Kazimzade, Mahammad"]
[Result "0-1"]
[ECO "D02"]
[WhiteElo "1716"]
[BlackElo "1594"]
[Annotator "NA RC"]
[PlyCount "121"]
[EventDate "2024.06.23"]
[EventType "swiss"]
[EventCountry "GEO"]
[SourceTitle "playchess.com"]
[Source "ChessBase"]
[SourceQuality "1"]
[TimeControl "5400+30"]

1. d4 {[%emt 0:00:05]} Nf6 {[%emt 0:00:29]} 2. Bf4 {[%emt 0:00:34]} e6 {[%emt 0:00:08]} 3. e3 {[%emt 0:00:38]} d5 {[%emt 0:00:26]} 4. Nf3 {[%emt 0:02:30]} c5 {[%emt 0:00:11]} 5. c3 {[%emt 0:00:10]} Nc6 {[%emt 0:00:11]} 6. Nbd2 {[%emt 0:02:31]} Bd6 {[%emt 0:02:26]} 7. Bxd6 {[%emt 0:05:34]} Qxd6 {[%emt 0:00:34]} 8. Bd3 {[%emt 0:06:21]} O-O {[%emt 0:07:02]} 9. O-O {[%emt 0:00:23]} b6 {[%emt 0:01:30]} 10. e4 {[%emt 0:04:10]} dxe4 {[%emt 0:04:52]} 11. Nxe4 {[%emt 0:02:49]} Nxe4 {[%emt 0:00:24]} 12. Bxe4 {[%emt 0:00:08]} Bb7 {[%emt 0:00:41]} 13. Ne5 {[%emt 0:12:07]} Rad8 {[%emt 0:01:58]} 14. Qf3 {[%emt 0:03:26]} Nxe5 {[%emt 0:01:14]} 15. dxe5 {[%emt 0:00:12]} Bxe4 {[%emt 0:00:04]} 16. Qxe4 {[%emt 0:00:09]} Qd5 {[%emt 0:01:23]} 17. Qa4 {[%emt 0:07:14]} a5 {[%emt 0:04:41]} 18. Rfe1 {[%emt 0:00:50]} Qb7 {[%emt 0:04:00]} 19. Rad1 {[%emt 0:01:20]} h6 {[%emt 0:00:26]} 20. Qb5 {[%emt 0:00:49]} Qc7 {[%emt 0:00:57]} 21. Qe2 {[%emt 0:07:53]} Qc6 {[%emt 0:05:28]} 22. Rd3 {[%emt 0:05:40]} Rxd3 {[%emt 0:04:14]} 23. Qxd3 {[%emt 0:00:19]} Qc7 {[%emt 0:00:05]} 24. f4 {[%emt 0:09:44]} Rd8 {[%emt 0:01:04]} 25. Qe3 {[%emt 0:04:22]} Qc6 {[%emt 0:00:38]} 26. Rf1 {[%emt 0:10:31]} Qd5 {[%emt 0:00:28]} 27. f5 {[%emt 0:00:43]} Qd3 {[%emt 0:00:38]} 28. Qe1 {[%emt 0:01:09]} exf5 {[%emt 0:01:59]} 29. Qf2 {[%emt 0:03:19]} Re8 {[%emt 0:00:57]} 30. Qxf5 {[%emt 0:00:32]} Qxf5 {[%emt 0:00:10]} 31. Rxf5 {[%emt 0:00:10]} Re6 {[%emt 0:00:12]} 32. Kf2 {[%emt 0:00:25]} b5 {[%emt 0:00:10]} 33. b3 {[%emt 0:02:32]} b4 {[%emt 0:01:36]} 34. c4 {[%emt 0:00:50]} a4 {[%emt 0:00:22]} 35. bxa4 {[%emt 0:01:36]} Ra6 {[%emt 0:00:26]} 36. e6 {[%emt 0:00:47]} fxe6 {[%emt 0:00:05]} 37. Rxc5 {[%emt 0:00:09]} Rxa4 {[%emt 0:00:04]} 38. Rb5 {[%emt 0:00:15]} Rxa2+ {[%emt 0:00:05]} 39. Kf3 {[%emt 0:00:08]} Rb2 {[%emt 0:00:19]} 40. c5 {[%emt 0:00:15]} b3 {[%emt 0:00:06]} 41. c6 {[%emt 0:00:16]} Rc2 {[%emt 0:00:06]} 42. Rb8+ {[%emt 0:00:24]} Kf7 {[%emt 0:00:14]} 43. Rb7+ {[%emt 0:00:17]} Kf6 {[%emt 0:00:06]} 44. c7 {[%emt 0:00:21]} b2 {[%emt 0:00:06]} 45. h4 {[%emt 0:02:46]} Rxc7 {[%emt 0:00:23]} 46. Rxb2 {[%emt 0:00:12]} h5 {[%emt 0:00:20]} 47. Rb5 {[%emt 0:00:15]} e5 {[%emt 0:00:12]} 48. Rb3 {[%emt 0:03:58]} Kf5 {[%emt 0:00:09]} 49. g3 {[%emt 0:00:16]} g6 {[%emt 0:00:34]} 50. Ra3 {[%emt 0:01:20]} Rc4 {[%emt 0:00:12]} 51. Re3 {[%emt 0:00:22]} e4+ {[%emt 0:00:28]} 52. Kg2 {[%emt 0:00:18]} Kg4 {[%emt 0:00:05]} 53. Kh2 {[%emt 0:00:29]} Rc2+ {[%emt 0:00:30]} 54. Kg1 {[%emt 0:00:15]} Kf5 {[%emt 0:00:50]} 55. Ra3 {[%emt 0:00:20]} Ke5 {[%emt 0:02:43]} 56. Ra6 {[%emt 0:03:22]} Kd4 {[%emt 0:58:49]} 57. Rxg6 {[%emt 0:00:30]} Ke3 58. Rg5 Kf3 {[%emt 0:01:00]} 59. Rxh5 {[%emt 0:01:00]} e3 60. Re5 e2 61. h5 {[%emt 0:01:00]} 0-1

[Event "FIDE World Cup O10-TB 2024"]
[Site "Batumi"]
[Date "2024.07.02"]
[Round "2.18"]
[White "TURKI, YOUSEF HATTAN A"]
[Black "Makhsatuly, Rakhim"]
[Result "0-1"]
[ECO "E61"]
[WhiteElo "1401"]
[BlackElo "1630"]
[Annotator "NA RC"]
[PlyCount "104"]
[EventDate "2024.06.23"]
[EventType "swiss"]
[EventCountry "GEO"]
[SourceTitle "playchess.com"]
[Source "ChessBase"]
[SourceQuality "1"]
[TimeControl "5400+30"]

1. d4 {[%emt 0:00:02]} Nf6 {[%emt 0:00:05]} 2. c4 {[%emt 0:00:07]} g6 {[%emt 0:00:06]} 3. Nc3 {[%emt 0:00:05]} Bg7 {[%emt 0:00:05]} 4. Nf3 {[%emt 0:00:06]} d6 {[%emt 0:00:08]} 5. Bf4 {[%emt 0:00:58]} Nbd7 {[%emt 0:01:30]} 6. Qc2 {[%emt 0:00:11]} Nh5 {[%emt 0:00:34]} 7. Bg5 {[%emt 0:00:49]} h6 {[%emt 0:00:09]} 8. Bh4 {[%emt 0:00:32]} g5 {[%emt 0:00:11]} 9. Bg3 {[%emt 0:00:08]} g4 {[%emt 0:10:27]} 10. Nd2 {[%emt 0:01:19]} Bxd4 {[%emt 0:01:08]} 11. e3 {[%emt 0:00:15]} Bg7 {[%emt 0:00:09]} 12. O-O-O {[%emt 0:02:46]} Nxg3 {[%emt 0:01:03]} 13. hxg3 {[%emt 0:00:05]} a5 {[%emt 0:00:15]} 14. f3 {[%emt 0:06:08]} Nc5 {[%emt 0:00:43]} 15. Nb3 {[%emt 0:05:23]} Nxb3+ {[%emt 0:04:25]} 16. Qxb3 {[%emt 0:00:19]} b6 {[%emt 0:04:54]} 17. e4 {[%emt 0:03:25]} Bd7 {[%emt 0:00:15]} 18. a3 {[%emt 0:04:12]} c6 {[%emt 0:08:59]} 19. Rh5 {[%emt 0:24:05]} Be6 {[%emt 0:02:15]} 20. Qc2 {[%emt 0:07:26]} Qc7 {[%emt 0:03:22]} 21. f4 {[%emt 0:09:31]} Bd7 {[%emt 0:01:48]} 22. Re1 {[%emt 0:04:36]} e6 {[%emt 0:01:46]} 23. f5 {[%emt 0:04:07]} Be5 {[%emt 0:01:21]} 24. fxe6 {[%emt 0:03:45]} Bxe6 {[%emt 0:04:45]} 25. Qd3 {[%emt 0:05:19]} O-O-O {[%emt 0:03:43]} 26. Kb1 {[%emt 0:08:21]} f6 {[%emt 0:04:55]} 27. Be2 {[%emt 0:10:00]} Qf7 {[%emt 0:00:27]} 28. Rhh1 {[%emt 0:00:00]} Qg6 {[%emt 0:01:36]} 29. c5 {[%emt 0:00:00]} b5 {[%emt 0:00:44]} 30. a4 {[%emt 0:00:00]} Bc4 {[%emt 0:02:38]} 31. Qe3 {[%emt 0:00:00]} Bxc3 {[%emt 0:01:08]} 32. Qxc3 {[%emt 0:00:00]} Qxe4+ {[%emt 0:40:56]} 33. Qc2 {[%emt 0:00:00]} Ba2+ {[%emt 0:00:00]} 34. Kc1 {[%emt 0:00:00]} Qe3+ {[%emt 0:00:00]} 35. Qd2 {[%emt 0:00:00]} Qxc5+ {[%emt 0:00:00]} 36. Qc2 {[%emt 0:00:00]} Qxc2+ {[%emt 0:00:00]} 37. Kxc2 {[%emt 0:00:00]} bxa4 {[%emt 0:00:00]} 38. Bxg4+ {[%emt 0:00:00]} Kc7 {[%emt 0:00:00]} 39. Re7+ {[%emt 0:00:00]} Kb6 {[%emt 0:00:00]} 40. Rh5 {[%emt 0:00:00]} Bb3+ {[%emt 0:00:00]} 41. Kc3 {[%emt 0:00:00]} Rhg8 {[%emt 0:00:00]} 42. Bf3 {[%emt 0:00:00]} Rxg3 {[%emt 0:00:00]} 43. Rxh6 {[%emt 0:00:07]} f5 {[%emt 0:00:00]} 44. Rhh7 {[%emt 0:00:08]} Bd5 {[%emt 0:06:00]} 45. Rb7+ {[%emt 0:00:10]} Kc5 {[%emt 0:00:00]} 46. Ra7 {[%emt 0:01:02]} Bxf3 {[%emt 0:00:00]} 47. gxf3 {[%emt 0:00:04]} Rxf3+ {[%emt 0:00:00]} 48. Kc2 {[%emt 0:00:08]} Rf2+ {[%emt 0:00:00]} 49. Kc3 {[%emt 0:00:08]} Rb8 {[%emt 0:00:00]} 50. Rhb7 {[%emt 0:00:43]} Rxb7 {[%emt 0:00:00]} 51. Rxb7 {[%emt 0:00:04]} Rf3+ {[%emt 0:00:00]} 52. Kc2 {[%emt 0:00:09]} f4 {[%emt 0:00:00]} 0-1